[Event "Titled Tuesday Blitz February 21 Late 2023"]
[White "Seletsky, Grigory"]
[Black "Matsuura, Frederico"]
[WhiteFideId "14112191"]
[BlackFideId "2107848"]
[WhiteElo "2259"]
[BlackElo "2244"]
[Result "0-1"]
[Round "09"]
[TimeControl "180+2"]
[Date "2023.02.21"]
[WhiteClock "0:01:06"]
[BlackClock "0:00:54"]

1. e4 {[%clk 0:02:28]}  e6 {[%clk 0:02:58]} 2. d3 {[%clk 0:02:26]}  d5 {[%clk 0:02:58]} 3. Qe2 {[%clk 0:02:26]}  dxe4 {[%clk 0:02:54]} 4. dxe4 {[%clk 0:02:26]}  e5 {[%clk 0:02:54]} 5. c3 {[%clk 0:02:25]}  Nc6 {[%clk 0:02:46]} 6. Qc2 {[%clk 0:02:26]}  Bc5 {[%clk 0:02:44]} 7. Nf3 {[%clk 0:02:25]}  Nf6 {[%clk 0:02:43]} 8. Bb5 {[%clk 0:02:25]}  O-O {[%clk 0:02:43]} 9. O-O {[%clk 0:02:23]}  Bd7 {[%clk 0:02:38]} 10. Bg5 {[%clk 0:02:21]}  h6 {[%clk 0:02:35]} 11. Bh4 {[%clk 0:02:17]}  Be7 {[%clk 0:02:26]} 12. Nbd2 {[%clk 0:02:15]}  Nh5 {[%clk 0:02:21]} 13. Bg3 {[%clk 0:02:13]}  Nxg3 {[%clk 0:02:18]} 14. hxg3 {[%clk 0:02:12]}  Nd4 {[%clk 0:01:46]} 15. Nxd4 {[%clk 0:02:06]}  exd4 {[%clk 0:01:46]} 16. Bxd7 {[%clk 0:02:03]}  Qxd7 {[%clk 0:01:46]} 17. cxd4 {[%clk 0:02:02]}  Qxd4 {[%clk 0:01:46]} 18. Nf3 {[%clk 0:01:49]}  Qb6 {[%clk 0:01:44]} 19. Rac1 {[%clk 0:01:47]}  c6 {[%clk 0:01:42]} 20. Ne5 {[%clk 0:01:47]}  Rad8 {[%clk 0:01:39]} 21. Rfd1 {[%clk 0:01:46]}  Qc7 {[%clk 0:01:37]} 22. Nd3 {[%clk 0:01:44]}  Rd4 {[%clk 0:01:34]} 23. f3 {[%clk 0:01:42]}  Rfd8 {[%clk 0:01:33]} 24. g4 {[%clk 0:01:36]}  Bg5 {[%clk 0:01:28]} 25. Rb1 {[%clk 0:01:34]}  Be3+ {[%clk 0:01:25]} 26. Kf1 {[%clk 0:01:31]}  Qh2 {[%clk 0:01:21]} 27. Nf2 {[%clk 0:01:31]}  Rd2 {[%clk 0:01:14]} 28. Rxd2 {[%clk 0:01:28]}  Rxd2 {[%clk 0:01:13]} 29. Qxd2 {[%clk 0:01:24]}  Bxd2 {[%clk 0:01:12]} 30. Ke2 {[%clk 0:01:25]}  Qxg2 {[%clk 0:01:07]} 31. Rd1 {[%clk 0:01:25]}  Bg5 {[%clk 0:01:03]} 32. Rf1 {[%clk 0:01:20]}  Bh4 {[%clk 0:01:03]} 33. a4 {[%clk 0:01:19]}  Kf8 {[%clk 0:01:00]} 34. b4 {[%clk 0:01:19]}  Bxf2 {[%clk 0:01:00]} 35. Rxf2 {[%clk 0:01:17]}  Qg3 {[%clk 0:01:00]} 36. Ke3 {[%clk 0:01:15]}  Ke7 {[%clk 0:00:58]} 37. b5 {[%clk 0:01:12]}  cxb5 {[%clk 0:00:58]} 38. axb5 {[%clk 0:01:12]}  a5 {[%clk 0:00:57]} 39. bxa6 {[%clk 0:01:12]}  bxa6 {[%clk 0:00:58]} 40. Ra2 {[%clk 0:01:11]}  a5 {[%clk 0:00:58]} 41. Rxa5 {[%clk 0:01:10]}  Qe1+ {[%clk 0:00:58]} 42. Kf4 {[%clk 0:01:10]}  Qxa5 {[%clk 0:00:57]} 43. e5 {[%clk 0:01:10]}  Qd5 {[%clk 0:00:55]} 44. Kf5 {[%clk 0:01:11]}  g6+ {[%clk 0:00:54]} 45. Kf4 {[%clk 0:01:09]}  g5+ {[%clk 0:00:53]} 46. Kg3 {[%clk 0:01:09]}  Qxe5+ {[%clk 0:00:53]} 47. Kh3 {[%clk 0:01:10]}  Qf4 {[%clk 0:00:53]} 48. Kg2 {[%clk 0:01:09]}  Ke6 {[%clk 0:00:53]} 49. Kf2 {[%clk 0:01:09]}  Ke5 {[%clk 0:00:53]} 50. Ke2 {[%clk 0:01:08]}  Qg3 {[%clk 0:00:53]} 51. Ke3 {[%clk 0:01:08]}  f5 {[%clk 0:00:53]} 52. gxf5 {[%clk 0:01:07]}  g4 {[%clk 0:00:53]} 53. Ke2 {[%clk 0:01:08]}  Qxf3+ {[%clk 0:00:54]} 54. Ke1 {[%clk 0:01:06]}  Qg2 {[%clk 0:00:53]} 55. f6 {[%clk 0:01:06]}  Ke4 {[%clk 0:00:54]} 56. f7 {[%clk 0:01:06]}  Ke3 {[%clk 0:00:54]} 0-1


[Site "https://www.chess.com"]

[Event "Titled Tuesday Blitz February 21 Late 2023"]
[White "Chernomordik, Pavel"]
[Black "Winkels, Marcel"]
[WhiteFideId "2804530"]
[BlackFideId "1003887"]
[WhiteElo "2150"]
[BlackElo "1960"]
[Result "1-0"]
[Round "09"]
[TimeControl "180+2"]
[Date "2023.02.21"]
[WhiteClock "0:00:19"]
[BlackClock "0:00:13"]

1. e4 {[%clk 0:03:00]}  c6 {[%clk 0:02:58]} 2. Nc3 {[%clk 0:03:00]}  Na6 {[%clk 0:02:57]} 3. Nf3 {[%clk 0:02:55]}  d5 {[%clk 0:02:56]} 4. d4 {[%clk 0:02:51]}  Nf6 {[%clk 0:02:53]} 5. e5 {[%clk 0:02:48]}  Ne4 {[%clk 0:02:45]} 6. Nxe4 {[%clk 0:02:42]}  dxe4 {[%clk 0:02:44]} 7. Ng5 {[%clk 0:02:43]}  Bf5 {[%clk 0:02:42]} 8. g4 {[%clk 0:02:25]}  Bg6 {[%clk 0:02:35]} 9. e6 {[%clk 0:02:25]}  f6 {[%clk 0:02:20]} 10. Nf7 {[%clk 0:02:11]}  Bxf7 {[%clk 0:02:18]} 11. exf7+ {[%clk 0:02:11]}  Kxf7 {[%clk 0:02:18]} 12. Bc4+ {[%clk 0:02:10]}  e6 {[%clk 0:02:12]} 13. c3 {[%clk 0:02:10]}  Bd6 {[%clk 0:01:51]} 14. Qe2 {[%clk 0:02:02]}  Qc7 {[%clk 0:01:48]} 15. Qxe4 {[%clk 0:02:00]}  Rae8 {[%clk 0:01:44]} 16. Be3 {[%clk 0:01:57]}  b5 {[%clk 0:01:36]} 17. Bb3 {[%clk 0:01:55]}  b4 {[%clk 0:01:35]} 18. c4 {[%clk 0:01:38]}  Qd7 {[%clk 0:01:32]} 19. c5 {[%clk 0:01:34]}  Bb8 {[%clk 0:01:28]} 20. f4 {[%clk 0:01:32]}  Nc7 {[%clk 0:01:24]} 21. O-O-O {[%clk 0:01:26]}  Nd5 {[%clk 0:01:23]} 22. Bd2 {[%clk 0:01:26]}  a5 {[%clk 0:01:20]} 23. Rde1 {[%clk 0:01:18]}  Qa7 {[%clk 0:01:05]} 24. f5 {[%clk 0:01:08]}  Qd7 {[%clk 0:01:02]} 25. Qf3 {[%clk 0:01:00]}  exf5 {[%clk 0:00:53]} 26. gxf5 {[%clk 0:00:59]}  Rxe1+ {[%clk 0:00:52]} 27. Rxe1 {[%clk 0:00:58]}  Re8 {[%clk 0:00:50]} 28. Qh5+ {[%clk 0:00:53]}  Kf8 {[%clk 0:00:46]} 29. Rxe8+ {[%clk 0:00:41]}  Qxe8 {[%clk 0:00:42]} 30. Qxh7 {[%clk 0:00:41]}  Bf4 {[%clk 0:00:30]} 31. Qh8+ {[%clk 0:00:31]}  Ke7 {[%clk 0:00:25]} 32. Qxe8+ {[%clk 0:00:31]}  Kxe8 {[%clk 0:00:24]} 33. Bxd5 {[%clk 0:00:29]}  Bxd2+ {[%clk 0:00:23]} 34. Kxd2 {[%clk 0:00:29]}  cxd5 {[%clk 0:00:23]} 35. Kc2 {[%clk 0:00:27]}  a4 {[%clk 0:00:20]} 36. a3 {[%clk 0:00:25]}  b3+ {[%clk 0:00:20]} 37. Kc3 {[%clk 0:00:24]}  Ke7 {[%clk 0:00:19]} 38. Kb4 {[%clk 0:00:24]}  g6 {[%clk 0:00:20]} 39. fxg6 {[%clk 0:00:22]}  f5 {[%clk 0:00:19]} 40. g7 {[%clk 0:00:21]}  Kf7 {[%clk 0:00:18]} 41. c6 {[%clk 0:00:22]}  f4 {[%clk 0:00:10]} 42. c7 {[%clk 0:00:21]}  Kxg7 {[%clk 0:00:11]} 43. c8=Q {[%clk 0:00:20]}  f3 {[%clk 0:00:11]} 44. Qg4+ {[%clk 0:00:19]}  Kf6 {[%clk 0:00:11]} 45. Qxf3+ {[%clk 0:00:20]}  Ke6 {[%clk 0:00:11]} 46. Kxa4 {[%clk 0:00:19]}  Kd6 {[%clk 0:00:11]} 47. Kxb3 {[%clk 0:00:19]}  Kc6 {[%clk 0:00:11]} 48. h4 {[%clk 0:00:18]}  Kb5 {[%clk 0:00:11]} 49. h5 {[%clk 0:00:19]}  Kc6 {[%clk 0:00:10]} 50. h6 {[%clk 0:00:19]}  Kd6 {[%clk 0:00:11]} 51. h7 {[%clk 0:00:20]}  Ke6 {[%clk 0:00:12]} 52. h8=Q {[%clk 0:00:20]}  Kd6 {[%clk 0:00:13]} 53. Qe5+ {[%clk 0:00:20]}  Kc6 {[%clk 0:00:13]} 54. Qff6+ {[%clk 0:00:19]} 1-0


[Site "https://www.chess.com"]

[Event "Titled Tuesday Blitz February 21 Late 2023"]
[White "Kostiukov, Alexandr"]
[Black "Berezin, Viktor"]
[WhiteFideId "14108100"]
[BlackFideId "14107872"]
[WhiteElo "2271"]
[BlackElo "2307"]
[Result "0-1"]
[Round "09"]
[TimeControl "180+2"]
[Date "2023.02.21"]
[WhiteClock "0:00:12"]
[BlackClock "0:00:28"]

1. g3 {[%clk 0:02:49]}  g6 {[%clk 0:02:59]} 2. Bg2 {[%clk 0:02:49]}  Bg7 {[%clk 0:03:00]} 3. c4 {[%clk 0:02:50]}  Nf6 {[%clk 0:03:00]} 4. Nf3 {[%clk 0:02:51]}  O-O {[%clk 0:03:01]} 5. O-O {[%clk 0:02:51]}  d6 {[%clk 0:03:02]} 6. d4 {[%clk 0:02:52]}  Nc6 {[%clk 0:03:02]} 7. Nc3 {[%clk 0:02:51]}  a6 {[%clk 0:03:02]} 8. d5 {[%clk 0:02:51]}  Na5 {[%clk 0:03:01]} 9. Qd3 {[%clk 0:02:49]}  c5 {[%clk 0:03:01]} 10. Bg5 {[%clk 0:02:45]}  Rb8 {[%clk 0:02:59]} 11. a4 {[%clk 0:02:44]}  h6 {[%clk 0:02:42]} 12. Bxf6 {[%clk 0:02:44]}  Bxf6 {[%clk 0:02:41]} 13. e4 {[%clk 0:02:44]}  Bg7 {[%clk 0:02:39]} 14. Rfe1 {[%clk 0:02:42]}  Nb3 {[%clk 0:02:38]} 15. Rad1 {[%clk 0:02:40]}  Nd4 {[%clk 0:02:38]} 16. Nxd4 {[%clk 0:02:27]}  Bxd4 {[%clk 0:02:36]} 17. Re2 {[%clk 0:02:14]}  Bg4 {[%clk 0:02:28]} 18. Bf3 {[%clk 0:02:11]}  Bxf3 {[%clk 0:02:24]} 19. Qxf3 {[%clk 0:02:12]}  e5 {[%clk 0:02:25]} 20. g4 {[%clk 0:01:55]}  Kh7 {[%clk 0:02:20]} 21. Red2 {[%clk 0:01:45]}  Qg5 {[%clk 0:02:10]} 22. Ne2 {[%clk 0:01:35]}  f5 {[%clk 0:02:04]} 23. Nxd4 {[%clk 0:01:19]}  cxd4 {[%clk 0:02:01]} 24. h3 {[%clk 0:00:49]}  fxe4 {[%clk 0:01:52]} 25. Qxe4 {[%clk 0:00:48]}  Rf4 {[%clk 0:01:52]} 26. Qg2 {[%clk 0:00:46]}  Rbf8 {[%clk 0:01:50]} 27. b4 {[%clk 0:00:46]}  e4 {[%clk 0:01:13]} 28. Rxd4 {[%clk 0:00:28]}  Rxf2 {[%clk 0:01:12]} 29. Qxe4 {[%clk 0:00:28]}  Qh4 {[%clk 0:00:47]} 30. R4d3 {[%clk 0:00:22]}  Rc2 {[%clk 0:00:31]} 31. Qe6 {[%clk 0:00:12]}  Qf2+ {[%clk 0:00:28]} 0-1


[Site "https://www.chess.com"]

[Event "Titled Tuesday Blitz February 21 Late 2023"]
[White "Toncheva, Nadya"]
[Black "Lucassen, Mickey"]
[WhiteFideId "2924056"]
[BlackFideId "12919110"]
[WhiteElo "2295"]
[BlackElo "2023"]
[Result "0-1"]
[Round "09"]
[TimeControl "180+2"]
[Date "2023.02.21"]
[WhiteClock "0:00:02"]
[BlackClock "0:00:05"]

1. d4 {[%clk 0:03:00]}  Nf6 {[%clk 0:02:57]} 2. c4 {[%clk 0:03:01]}  g6 {[%clk 0:02:55]} 3. Nc3 {[%clk 0:03:01]}  d5 {[%clk 0:02:56]} 4. Qb3 {[%clk 0:03:00]}  dxc4 {[%clk 0:02:49]} 5. Qxc4 {[%clk 0:03:01]}  Be6 {[%clk 0:02:46]} 6. Qb5+ {[%clk 0:02:56]}  Bd7 {[%clk 0:02:46]} 7. Qxb7 {[%clk 0:02:48]}  Nc6 {[%clk 0:02:46]} 8. e3 {[%clk 0:02:37]}  Rb8 {[%clk 0:02:37]} 9. Qa6 {[%clk 0:02:37]}  Nb4 {[%clk 0:02:34]} 10. Qe2 {[%clk 0:02:38]}  Bg7 {[%clk 0:01:45]} 11. a3 {[%clk 0:02:36]}  Nc6 {[%clk 0:01:44]} 12. Nf3 {[%clk 0:02:33]}  O-O {[%clk 0:01:43]} 13. g3 {[%clk 0:02:29]}  Bf5 {[%clk 0:01:35]} 14. Bg2 {[%clk 0:02:25]}  e5 {[%clk 0:01:33]} 15. Nh4 {[%clk 0:02:03]}  Bg4 {[%clk 0:01:07]} 16. Qc2 {[%clk 0:01:52]}  Na5 {[%clk 0:00:50]} 17. dxe5 {[%clk 0:01:46]}  Nd7 {[%clk 0:00:45]} 18. f4 {[%clk 0:01:32]}  Nb3 {[%clk 0:00:40]} 19. Rb1 {[%clk 0:01:30]}  Ndc5 {[%clk 0:00:39]} 20. O-O {[%clk 0:01:25]}  Qd3 {[%clk 0:00:26]} 21. Be4 {[%clk 0:01:08]}  Qc4 {[%clk 0:00:19]} 22. Bd5 {[%clk 0:01:04]}  Qa6 {[%clk 0:00:10]} 23. Bd2 {[%clk 0:00:54]}  Rfd8 {[%clk 0:00:09]} 24. Bxb3 {[%clk 0:00:51]}  Nxb3 {[%clk 0:00:10]} 25. Be1 {[%clk 0:00:41]}  Bf8 {[%clk 0:00:10]} 26. f5 {[%clk 0:00:31]}  Bc5 {[%clk 0:00:09]} 27. Qe4 {[%clk 0:00:28]}  Bh3 {[%clk 0:00:05]} 28. Rf2 {[%clk 0:00:21]}  g5 {[%clk 0:00:05]} 29. f6 {[%clk 0:00:14]}  gxh4 {[%clk 0:00:05]} 30. Qxh4 {[%clk 0:00:09]}  Bxe3 {[%clk 0:00:05]} 31. Qxh3 {[%clk 0:00:10]}  Bxf2+ {[%clk 0:00:05]} 32. Bxf2 {[%clk 0:00:10]}  Kh8 {[%clk 0:00:04]} 33. Be3 {[%clk 0:00:07]}  Qd3 {[%clk 0:00:03]} 34. Qh6 {[%clk 0:00:05]}  Rg8 {[%clk 0:00:02]} 35. Rd1 {[%clk 0:00:05]}  Qf5 {[%clk 0:00:02]} 36. Bf4 {[%clk 0:00:04]}  Nd4 {[%clk 0:00:02]} 37. Rxd4 {[%clk 0:00:03]}  Qc2 {[%clk 0:00:02]} 38. Rd1 {[%clk 0:00:03]}  Rxb2 {[%clk 0:00:01]} 39. Rd2 {[%clk 0:00:02]}  Qc1+ {[%clk 0:00:02]} 40. Kg2 {[%clk 0:00:02]}  Qxc3 {[%clk 0:00:02]} 41. Rxb2 {[%clk 0:00:02]}  Qxb2+ {[%clk 0:00:03]} 42. Kh3 {[%clk 0:00:02]}  Qb7 {[%clk 0:00:03]} 43. Qh5 {[%clk 0:00:02]}  Qc8+ {[%clk 0:00:04]} 44. Kh4 {[%clk 0:00:02]}  Qe6 {[%clk 0:00:05]} 45. g4 {[%clk 0:00:02]}  Qd5 {[%clk 0:00:05]} 46. h3 {[%clk 0:00:03]}  Qf3 {[%clk 0:00:05]} 47. Qf5 {[%clk 0:00:02]}  Qd5 {[%clk 0:00:04]} 48. Qh5 {[%clk 0:00:02]}  Qe6 {[%clk 0:00:05]} 49. Bg3 {[%clk 0:00:03]}  Rg6 {[%clk 0:00:05]} 50. g5 {[%clk 0:00:03]}  Qf5 {[%clk 0:00:05]} 51. Qd1 {[%clk 0:00:02]}  Qxg5# {[%clk 0:00:05]} 0-1


[Site "https://www.chess.com"]

[Event "Titled Tuesday Blitz February 21 Late 2023"]
[White "Stanisz, Patryk"]
[Black "Kalajzic, Ivan"]
[WhiteFideId "1123106"]
[BlackFideId "14506378"]
[WhiteElo "2161"]
[BlackElo "2062"]
[Result "0-1"]
[Round "09"]
[TimeControl "180+2"]
[Date "2023.02.21"]
[WhiteClock "0:00:02"]
[BlackClock "0:00:17"]

1. e4 {[%clk 0:02:59]}  Nc6 {[%clk 0:02:56]} 2. Nf3 {[%clk 0:02:58]}  d6 {[%clk 0:02:56]} 3. g3 {[%clk 0:02:54]}  g6 {[%clk 0:02:52]} 4. Bg2 {[%clk 0:02:54]}  Bg7 {[%clk 0:02:52]} 5. O-O {[%clk 0:02:53]}  e5 {[%clk 0:02:48]} 6. c3 {[%clk 0:02:51]}  Nf6 {[%clk 0:02:45]} 7. d4 {[%clk 0:02:40]}  O-O {[%clk 0:02:44]} 8. Nbd2 {[%clk 0:02:37]}  Re8 {[%clk 0:02:39]} 9. d5 {[%clk 0:02:34]}  Ne7 {[%clk 0:02:39]} 10. c4 {[%clk 0:02:34]}  h6 {[%clk 0:02:38]} 11. Qc2 {[%clk 0:02:18]}  g5 {[%clk 0:02:37]} 12. c5 {[%clk 0:02:13]}  Ng6 {[%clk 0:02:37]} 13. Nb3 {[%clk 0:01:56]}  g4 {[%clk 0:02:29]} 14. Nfd2 {[%clk 0:01:50]}  b6 {[%clk 0:02:28]} 15. cxd6 {[%clk 0:01:49]}  cxd6 {[%clk 0:02:25]} 16. Nc4 {[%clk 0:01:43]}  Bf8 {[%clk 0:02:21]} 17. Be3 {[%clk 0:01:34]}  Nh7 {[%clk 0:02:19]} 18. Qd2 {[%clk 0:01:28]}  Ng5 {[%clk 0:02:04]} 19. Bxg5 {[%clk 0:01:26]}  hxg5 {[%clk 0:02:04]} 20. Rfc1 {[%clk 0:01:25]}  f5 {[%clk 0:01:53]} 21. Na3 {[%clk 0:01:06]}  f4 {[%clk 0:01:52]} 22. Nb5 {[%clk 0:01:04]}  Re7 {[%clk 0:01:41]} 23. Rc6 {[%clk 0:00:55]}  Rh7 {[%clk 0:01:38]} 24. Rac1 {[%clk 0:00:54]}  Bd7 {[%clk 0:01:16]} 25. a4 {[%clk 0:00:14]}  Be7 {[%clk 0:01:03]} 26. Rxd6 {[%clk 0:00:08]}  Bxd6 {[%clk 0:01:00]} 27. Nxd6 {[%clk 0:00:09]}  Bxa4 {[%clk 0:00:53]} 28. Nf5 {[%clk 0:00:02]}  Bxb3 {[%clk 0:00:49]} 29. Rc6 {[%clk 0:00:02]}  Ne7 {[%clk 0:00:46]} 30. Rd6 {[%clk 0:00:01]}  Qf8 {[%clk 0:00:44]} 31. Nxe7+ {[%clk 0:00:02]}  Qxe7 {[%clk 0:00:44]} 32. Re6 {[%clk 0:00:03]}  Qg7 {[%clk 0:00:26]} 33. gxf4 {[%clk 0:00:03]}  gxf4 {[%clk 0:00:24]} 34. Qb4 {[%clk 0:00:04]}  g3 {[%clk 0:00:20]} 35. fxg3 {[%clk 0:00:03]}  fxg3 {[%clk 0:00:20]} 36. Qxb3 {[%clk 0:00:04]}  gxh2+ {[%clk 0:00:20]} 37. Kh1 {[%clk 0:00:04]}  Rf8 {[%clk 0:00:19]} 38. Qc2 {[%clk 0:00:02]}  Rf1+ {[%clk 0:00:17]} 0-1


[Site "https://www.chess.com"]

[Event "Titled Tuesday Blitz February 21 Late 2023"]
[White "Chemin, Justo Reinaldo"]
[Black "Rian, Kapriaga"]
[WhiteFideId "2101580"]
[BlackFideId "7103263"]
[WhiteElo "2040"]
[BlackElo "2089"]
[Result "1-0"]
[Round "09"]
[TimeControl "180+2"]
[Date "2023.02.21"]
[WhiteClock "0:00:20"]
[BlackClock "0:00:01"]

1. d4 {[%clk 0:03:00]}  Nf6 {[%clk 0:02:58]} 2. Nf3 {[%clk 0:03:00]}  d5 {[%clk 0:02:56]} 3. Bf4 {[%clk 0:03:01]}  e6 {[%clk 0:02:54]} 4. e3 {[%clk 0:03:02]}  Bd6 {[%clk 0:02:53]} 5. Bd3 {[%clk 0:03:02]}  O-O {[%clk 0:02:52]} 6. Nbd2 {[%clk 0:03:01]}  c5 {[%clk 0:02:51]} 7. c3 {[%clk 0:03:01]}  Qc7 {[%clk 0:02:49]} 8. Bg3 {[%clk 0:02:59]}  Nbd7 {[%clk 0:02:48]} 9. Qe2 {[%clk 0:02:59]}  e5 {[%clk 0:02:47]} 10. dxe5 {[%clk 0:02:58]}  Nxe5 {[%clk 0:02:45]} 11. Nxe5 {[%clk 0:02:59]}  Bxe5 {[%clk 0:02:45]} 12. Nf3 {[%clk 0:02:55]}  Bd6 {[%clk 0:02:40]} 13. O-O {[%clk 0:02:47]}  Bg4 {[%clk 0:02:38]} 14. Rac1 {[%clk 0:02:29]}  Rfe8 {[%clk 0:02:36]} 15. Qc2 {[%clk 0:02:20]}  Rad8 {[%clk 0:02:28]} 16. Bf5 {[%clk 0:02:07]}  Bxg3 {[%clk 0:01:56]} 17. hxg3 {[%clk 0:02:03]}  Rd6 {[%clk 0:01:39]} 18. Rcd1 {[%clk 0:01:54]}  b5 {[%clk 0:01:25]} 19. Rfe1 {[%clk 0:01:48]}  a5 {[%clk 0:01:22]} 20. Bxg4 {[%clk 0:01:47]}  Nxg4 {[%clk 0:01:21]} 21. Rd2 {[%clk 0:01:34]}  Qe7 {[%clk 0:00:55]} 22. Qf5 {[%clk 0:01:16]}  Nf6 {[%clk 0:00:47]} 23. Red1 {[%clk 0:01:05]}  g6 {[%clk 0:00:35]} 24. Qg5 {[%clk 0:00:56]}  Kg7 {[%clk 0:00:29]} 25. Nh4 {[%clk 0:00:50]}  Qe6 {[%clk 0:00:21]} 26. Qf4 {[%clk 0:00:34]}  b4 {[%clk 0:00:16]} 27. Nf3 {[%clk 0:00:33]}  Red8 {[%clk 0:00:07]} 28. Ng5 {[%clk 0:00:28]}  Qe7 {[%clk 0:00:05]} 29. Qh4 {[%clk 0:00:23]}  h6 {[%clk 0:00:04]} 30. Nf3 {[%clk 0:00:23]}  Qe6 {[%clk 0:00:03]} 31. Qf4 {[%clk 0:00:21]}  Qe4 {[%clk 0:00:01]} 32. Qxe4 {[%clk 0:00:19]}  Nxe4 {[%clk 0:00:01]} 33. Re2 {[%clk 0:00:19]}  Nf6 {[%clk 0:00:02]} 34. cxb4 {[%clk 0:00:19]}  axb4 {[%clk 0:00:01]} 35. Rc2 {[%clk 0:00:19]}  c4 {[%clk 0:00:01]} 36. Rdc1 {[%clk 0:00:20]} 1-0


[Site "https://www.chess.com"]

[Event "Titled Tuesday Blitz February 21 Late 2023"]
[White "Kielinkei"]
[Black "Sailer, Mike"]
[BlackFideId "2012901"]
[WhiteElo "2387"]
[BlackElo "2109"]
[Result "1-0"]
[Round "09"]
[TimeControl "180+2"]
[Date "2023.02.21"]
[WhiteClock "0:00:37"]
[BlackClock "0:00:05"]

1. d4 {[%clk 0:03:00]}  d5 {[%clk 0:02:58]} 2. c4 {[%clk 0:03:00]}  Bf5 {[%clk 0:02:57]} 3. cxd5 {[%clk 0:02:59]}  Bxb1 {[%clk 0:02:56]} 4. Rxb1 {[%clk 0:02:59]}  Qxd5 {[%clk 0:02:54]} 5. Qa4+ {[%clk 0:02:39]}  Nc6 {[%clk 0:02:53]} 6. Nf3 {[%clk 0:02:38]}  O-O-O {[%clk 0:02:49]} 7. e3 {[%clk 0:02:34]}  e5 {[%clk 0:02:45]} 8. Be2 {[%clk 0:01:55]}  Bb4+ {[%clk 0:02:37]} 9. Bd2 {[%clk 0:01:53]}  Bxd2+ {[%clk 0:02:34]} 10. Nxd2 {[%clk 0:01:54]}  Qxg2 {[%clk 0:02:06]} 11. Bf3 {[%clk 0:01:54]}  Qg6 {[%clk 0:02:06]} 12. Bxc6 {[%clk 0:01:50]}  Qxc6 {[%clk 0:02:03]} 13. Qxc6 {[%clk 0:01:48]}  bxc6 {[%clk 0:02:02]} 14. dxe5 {[%clk 0:01:49]}  Nh6 {[%clk 0:01:53]} 15. Rg1 {[%clk 0:01:45]}  g6 {[%clk 0:01:47]} 16. Ke2 {[%clk 0:01:39]}  Rhe8 {[%clk 0:01:34]} 17. f4 {[%clk 0:01:38]}  Nf5 {[%clk 0:01:30]} 18. Ne4 {[%clk 0:01:36]}  Rd5 {[%clk 0:01:19]} 19. Rgd1 {[%clk 0:01:30]}  Red8 {[%clk 0:01:15]} 20. Rxd5 {[%clk 0:01:19]}  cxd5 {[%clk 0:01:11]} 21. Nf6 {[%clk 0:01:18]}  h5 {[%clk 0:01:04]} 22. Rd1 {[%clk 0:01:15]}  d4 {[%clk 0:01:03]} 23. e4 {[%clk 0:01:13]}  Ne3 {[%clk 0:00:50]} 24. Rc1 {[%clk 0:01:13]}  Kb7 {[%clk 0:00:38]} 25. Kd3 {[%clk 0:01:08]}  Ng2 {[%clk 0:00:30]} 26. Rf1 {[%clk 0:01:03]}  c5 {[%clk 0:00:23]} 27. b3 {[%clk 0:01:01]}  Ne3 {[%clk 0:00:23]} 28. Rf2 {[%clk 0:00:57]}  Kc6 {[%clk 0:00:20]} 29. h3 {[%clk 0:00:50]}  a5 {[%clk 0:00:19]} 30. f5 {[%clk 0:00:42]}  a4 {[%clk 0:00:18]} 31. e6 {[%clk 0:00:40]}  gxf5 {[%clk 0:00:14]} 32. e7 {[%clk 0:00:40]}  c4+ {[%clk 0:00:08]} 33. bxc4 {[%clk 0:00:40]}  Kc7 {[%clk 0:00:04]} 34. exd8=Q+ {[%clk 0:00:38]}  Kxd8 {[%clk 0:00:05]} 35. Kxd4 {[%clk 0:00:37]} 1-0


[Site "https://www.chess.com"]

[Event "Titled Tuesday Blitz February 21 Late 2023"]
[White "Davidson, Kevin"]
[Black "Torres Dominguez, David"]
[WhiteFideId "2056810"]
[BlackFideId "2220857"]
[WhiteElo "2154"]
[BlackElo "1994"]
[Result "1-0"]
[Round "09"]
[TimeControl "180+2"]
[Date "2023.02.21"]
[WhiteClock "0:01:15"]
[BlackClock "0:01:33"]

1. e4 {[%clk 0:03:00]}  Nc6 {[%clk 0:02:58]} 2. Nf3 {[%clk 0:03:00]}  e5 {[%clk 0:02:56]} 3. Bb5 {[%clk 0:02:59]}  Nge7 {[%clk 0:02:56]} 4. d4 {[%clk 0:02:59]}  exd4 {[%clk 0:02:56]} 5. Nxd4 {[%clk 0:02:59]}  g6 {[%clk 0:02:57]} 6. Nxc6 {[%clk 0:02:59]}  Nxc6 {[%clk 0:02:57]} 7. Bxc6 {[%clk 0:02:59]}  bxc6 {[%clk 0:02:57]} 8. Qd4 {[%clk 0:02:59]}  f6 {[%clk 0:02:58]} 9. b3 {[%clk 0:02:56]}  Bg7 {[%clk 0:02:58]} 10. Bb2 {[%clk 0:02:55]}  O-O {[%clk 0:02:58]} 11. Nd2 {[%clk 0:02:55]}  Kh8 {[%clk 0:02:56]} 12. O-O-O {[%clk 0:02:54]}  d6 {[%clk 0:02:56]} 13. h4 {[%clk 0:02:53]}  c5 {[%clk 0:02:53]} 14. Qd3 {[%clk 0:02:50]}  a5 {[%clk 0:02:52]} 15. h5 {[%clk 0:02:44]}  Ba6 {[%clk 0:02:45]} 16. Qh3 {[%clk 0:02:34]}  gxh5 {[%clk 0:02:34]} 17. Qxh5 {[%clk 0:02:31]}  h6 {[%clk 0:02:34]} 18. Qg6 {[%clk 0:02:17]}  Qe8 {[%clk 0:02:14]} 19. Rxh6+ {[%clk 0:02:15]}  Bxh6 {[%clk 0:02:15]} 20. Qxh6+ {[%clk 0:02:10]}  Kg8 {[%clk 0:02:15]} 21. Bxf6 {[%clk 0:01:55]}  Rxf6 {[%clk 0:01:37]} 22. Qxf6 {[%clk 0:01:56]}  Qe5 {[%clk 0:01:37]} 23. Qxe5 {[%clk 0:01:42]}  dxe5 {[%clk 0:01:38]} 24. Nf3 {[%clk 0:01:42]}  Be2 {[%clk 0:01:36]} 25. Rd5 {[%clk 0:01:33]}  Bxf3 {[%clk 0:01:37]} 26. gxf3 {[%clk 0:01:33]}  Rf8 {[%clk 0:01:37]} 27. Rxe5 {[%clk 0:01:29]}  Rxf3 {[%clk 0:01:37]} 28. Rxc5 {[%clk 0:01:25]}  Rxf2 {[%clk 0:01:36]} 29. Rxc7 {[%clk 0:01:19]}  Re2 {[%clk 0:01:33]} 30. Ra7 {[%clk 0:01:15]} 1-0


[Site "https://www.chess.com"]